Cogmind - Beta 9.1 @@@ ROGUE MODE // 2019.10.30 @ 09:40:26 Player: MrPainting Result: Self-destructed Performance ------------- Evolutions (2) 1000 Regions Visited (5) 1000 Robots Destroyed (13) 65 Value Destroyed (184) 184 Prototype IDs (2) 40 Alien Tech Used (0) 0 Bonus (258) 258 TOTAL SCORE: 2547 Bonus ------- Aligned with FarCom 300 Friendly Fire -42 Cogmind --------- Core Integrity 442/550 Matter 19/300 Energy 100/100 System Corruption 0% Temperature Cool (9) Location -8/Materials Parts ------- Power (1) Propulsion (2) Utility (4) Large Storage Unit Weapon (4) XL Autogun Array Inventory (10) High-capacity Storage Unit High-capacity Storage Unit High-capacity Storage Unit Large Matter Pod (0) Particle Cannon Heavy Particle Cannon Assault Rifle Assault Rifle Assault Rifle Grenade Launcher Peak State ------------ Power Light Ion Engine Propulsion Aluminum Leg Aluminum Leg Utility Large Storage Unit Improved Sensor Array ECM Suite Light Armor Plating Weapon XL Autogun Array Inventory High-capacity Storage Unit High-capacity Storage Unit High-capacity Storage Unit Large Matter Pod Particle Cannon Assault Rifle Assault Rifle Assault Rifle Grenade Launcher Mining Claw [Rating: 45] Favorites ----------- Power Light Ion Engine Engine Light Ion Engine Propulsion Aluminum Leg Leg Aluminum Leg Utility Light Armor Plating Device Improved Sensor Array Storage Large Storage Unit Protection Light Armor Plating Weapon Assault Rifle Energy Gun Small Laser Energy Cannon YOLO Cannon Ballistic Gun Assault Rifle Launcher Grenade Launcher Build | -11 -10 -10 -10 -9 -8 ------- Run | Scr Mat Min Exi Min Mat Slots Evolved 4 | . . . . . 4 Power . | . . . . . . Propulsion . | . . . . . . Utility 2 | . . . . . 2 Weapon 2 | . . . . . 2 Parts Attached 26 | 6 4 2 4 1 9 Power 2 | 1 . . . 1 . Engine 2 | 1 . . . 1 . Core . | . . . . . . Reactor . | . . . . . . Propulsion 2 | 2 . . . . . Treads . | . . . . . . Leg 2 | 2 . . . . . Wheel . | . . . . . . Hover . | . . . . . . Flight . | . . . . . . Utility 10 | 1 1 1 1 . 6 Device 2 | . . . . . 2 Storage 7 | 1 . 1 1 . 4 Processor . | . . . . . . Hackware . | . . . . . . Protection 1 | . 1 . . . . Artifact . | . . . . . . Weapon 12 | 2 3 1 3 . 3 Energy Gun 2 | 2 . . . . . Energy Cannon 1 | . . . 1 . . Ballistic Gun 6 | . 2 . 1 . 3 Ballistic Cannon . | . . . . . . Launcher 3 | . 1 1 1 . . Special Weapon . | . . . . . . Impact Weapon . | . . . . . . Slashing Weapon . | . . . . . . Piercing Weapon . | . . . . . . Special Melee Weapon . | . . . . . . Unidentified Prototypes 2 | . . . 1 . 1 Parts Lost 7 | . 1 . . . 6 Power 2 | . 1 . . . 1 Propulsion 2 | . . . . . 2 Utility 3 | . . . . . 3 Weapon . | . . . . . . Highest Loss Streak 3 | . 1 . . . 3 Average Slot Usage (%) 84 | . 89 85 84 100 62 Engine 6 | . 13 . . 14 6 Leg 25 | . 28 28 28 28 16 Device 2 | . . . . . 11 Storage 13 | . 14 14 14 14 9 Protection 11 | . 5 14 14 14 6 Energy Gun 1 | . 13 . . . . Ballistic Gun 12 | . 9 14 13 14 10 Launcher 10 | . 4 14 13 14 . Naked Turns . | . . . . . . Heaviest Build 47 | 9 14 24 40 43 47 Greatest Support 20 | 20 20 20 20 20 20 Greatest Overweight (x) 10 | . . 1 1 2 10 Average Overweight (x) . | . . . . 1 1 Largest Inventory Capacity 12 | 6 6 10 12 12 12 Average Capacity 9 | 5 6 7 10 12 10 Most Carried 12 | 4 6 6 12 12 11 Average Carried 8 | . 3 5 8 12 9 Final Capacity 12 | 6 6 10 12 12 10 Final Carried 12 | . 5 6 12 12 10 Class Distribution -------------------- 81% | Mutant 18% | Skirmisher Dominant Class ---------------- Mutant | -10/Materials Mutant | -10/Mines Mutant | -10/Exiles Mutant | -9/Mines Skirmisher | -8/Materials Resources | -11 -10 -10 -10 -9 -8 ----------- Run | Scr Mat Min Exi Min Mat Matter Collected 314 | 192 32 25 . 65 . Remotely . | . . . . . . Salvage Created 157 | . 58 36 . 16 47 Parts 19 | . 6 7 . 4 2 Haulers Intercepted 1 | . 1 . . . . Recyclers Shooed . | . . . . . . Parts Field Recycled . | . . . . . . Retrieved Matter . | . . . . . . Parts Self-Destructed . | . . . . . . Prevented . | . . . . . . Kills | -11 -10 -10 -10 -9 -8 ------- Run | Scr Mat Min Exi Min Mat Combat Hostiles Destroyed 11 | . 1 6 . 3 1 Guns 3 | . . 2 . . 1 AOE 8 | . 1 4 . 3 . Classes Destroyed 4 | . 3 1 . . . Worker 1 | . 1 . . . . Hauler 1 | . 1 . . . . Swarmer 9 | . . 6 . 3 . Grunt 2 | . 1 . . . 1 Best Kill Streak 3 | . 3 3 . 3 1 Combat Bots Only 3 | . 1 3 . 3 1 Max Kills in Single Turn 2 | . 1 2 . 2 1 Gunslinging . | . . . . . . Exploded 2 | . 1 2 . 2 . Melee . | . . . . . . Uniques/NPCs Destroyed . | . . . . . . Combat | -11 -10 -10 -10 -9 -8 -------- Run | Scr Mat Min Exi Min Mat Damage Taken 1269 | . 144 134 . 93 898 Core 140 | . 17 15 . . 108 Absorbed by Shields . | . . . . . . Core Remaining (%) 93 | 100 . . . 87 . Volleys Fired 14 | . 4 5 . 2 3 Largest 2 | . 1 2 . 1 1 Hottest 60 | . 30 50 . 30 60 Shots Fired 19 | . 4 10 . 2 3 Gun 8 | . . 5 . . 3 Cannon . | . . . . . . Launcher 11 | . 4 5 . 2 . Special . | . . . . . . Kinetic 8 | . . 5 . . 3 Thermal . | . . . . . . Explosive 11 | . 4 5 . 2 . Electromagnetic . | . . . . . . Robot Hit Streak 3 | . 1 3 . 1 2 Robot Miss Streak 3 | . 2 2 . 1 3 Penetration Max . | . . . . . . Secondary Targets . | . . . . . . Shots Hit Robots 10 | . 2 4 . 1 3 Core Hits 20 | . 4 9 . 4 3 Critical Hits . | . . . . . . Critical Kills . | . . . . . . Critical Parts Destroyed . | . . . . . . Melee Attacks . | . . . . . . Impact . | . . . . . . Slashing . | . . . . . . Piercing . | . . . . . . Sneak Attacks . | . . . . . . Combat Hostiles . | . . . . . . Follow-up Attacks . | . . . . . . Damage Inflicted 885 | . 173 320 . 218 174 Guns 210 | . . 36 . . 174 Cannons . | . . . . . . Explosions 675 | . 173 284 . 218 . Melee . | . . . . . . Ramming . | . . . . . . Kinetic 210 | . . 36 . . 174 Thermal . | . . . . . . Explosive 675 | . 173 284 . 218 . Electromagnetic . | . . . . . . Impact . | . . . . . . Slashing . | . . . . . . Piercing . | . . . . . . Highest Corruption 2 | . 2 2 2 2 . Average Corruption 2 | . 2 2 2 2 . Corruption Purged . | . . . . . . Effects 12 | . . 4 3 5 . Message Errors 5 | . . 3 1 1 . Heat Flow Errors 2 | . . . 1 1 . Energy Discharges 3 | . . 1 . 2 . Data Loss (minor) 2 | . . . 1 1 . Overload Shots . | . . . . . . Overflow Damage 19 | . . 19 . . . Projectiles . | . . . . . . Explosions 19 | . . 19 . . . Melee . | . . . . . . Knockbacks . | . . . . . . Impact . | . . . . . . Kinetic . | . . . . . . Secondary . | . . . . . . Self-Inflicted Damage 118 | . . 40 . 78 . Shots 3 | . . 1 . 2 . Rammed . | . . . . . . Targets Rammed . | . . . . . . Kicked . | . . . . . . Crushed . | . . . . . . Highest Temperature 217 | . 9 . 105 217 65 Average Temperature 73 | . 5 . 53 113 31 Received Heat Transfer 561 | . 84 . . . 477 Siege Activations . | . . . . . . Robots Corrupted . | . . . . . . Combat Hostiles . | . . . . . . Parts Fried . | . . . . . . Impact Corruptions . | . . . . . . Robots Melted . | . . . . . . Combat Hostiles . | . . . . . . Parts Melted . | . . . . . . Heat Transferred . | . . . . . . Parts Sabotaged . | . . . . . . Parts Stolen . | . . . . . . Parts Stripped . | . . . . . . Power Chain Reactions . | . . . . . . Missiles Intercepted . | . . . . . . Alert | -11 -10 -10 -10 -9 -8 ------- Run | Scr Mat Min Exi Min Mat Peak Influence 159 | . 62 159 . 100 56 Average Influence 79 | . 25 139 . 99 47 Maximum Alert Level . | . . . . . . Low Security (%) 100 | . . . . . . Level 1 . | . . . . . . Level 2 . | . . . . . . Level 3 . | . . . . . . Level 4 . | . . . . . . Level 5 . | . . . . . . High Security . | . . . . . . Max Security . | . . . . . . Squads Dispatched 1 | . . . . . 1 Investigation . | . . . . . . Extermination . | . . . . . . Reinforcement 1 | . . . . . 1 Assault . | . . . . . . Garrison . | . . . . . . Intercept . | . . . . . . Construction Impeded . | . . . . . . Haulers Reinforced . | . . . . . . Stealth | -11 -10 -10 -10 -9 -8 --------- Run | Scr Mat Min Exi Min Mat Distress Signals . | . . . . . . Communications Jammed . | . . . . . . Distress Signals . | . . . . . . Times Spotted 19 | . 6 6 . 1 6 Peak Tracking Total 5 | . 5 3 . 1 5 Tactical Retreats . | . . . . . . Traps | -11 -10 -10 -10 -9 -8 ------- Run | Scr Mat Min Exi Min Mat Traps Triggered 1 | . 1 . . . . Indirectly . | . . . . . . Trap Hack Attempts . | . . . . . . Triggered . | . . . . . . Disarmed . | . . . . . . Reprogrammed . | . . . . . . Reused . | . . . . . . Traps Extracted . | . . . . . . Installed . | . . . . . . Triggered . | . . . . . . Machines | -11 -10 -10 -10 -9 -8 ---------- Run | Scr Mat Min Exi Min Mat Machines Disabled 1 | . . . . 1 . Max in Single Turn 1 | . . . . 1 . Machines Sabotaged . | . . . . . . Garrisons Compromised . | . . . . . . Overloaded Fab Kills . | . . . . . . Fab Network Shutdowns . | . . . . . . Hacking | -11 -10 -10 -10 -9 -8 --------- Run | Scr Mat Min Exi Min Mat Machines Accessed 1 | . . . . . 1 Terminals 1 | . . . . . 1 Fabricators . | . . . . . . Repair Stations . | . . . . . . Recycling Units . | . . . . . . Scanalyzers . | . . . . . . Garrison Access . | . . . . . . Total Hacks 2 | . . . . . 2 Successful 1 | . . . . . 1 Failed 1 | . . . . . 1 Catastrophic . | . . . . . . Database Lockouts . | . . . . . . Manual 3 | . . . 1 . 2 Terminals 2 | . . . . . 2 Fabricators . | . . . . . . Repair Stations . | . . . . . . Recycling Units . | . . . . . . Scanalyzers . | . . . . . . Garrison Access . | . . . . . . Terminal Hacks . | . . . . . . Fabricator Hacks . | . . . . . . Repair Station Hacks . | . . . . . . Recycling Unit Hacks . | . . . . . . Scanalyzer . | . . . . . . Garrison Access Hacks . | . . . . . . Unauthorized Hacks 3 | . . . . . 3 Terminals 1 | . . . . . 1 Botnet 1 | . . . . . 1 Fabricators . | . . . . . . Repair Stations . | . . . . . . Recycling Units . | . . . . . . Scanalyzers . | . . . . . . Garrison Access . | . . . . . . Data Cores Recovered . | . . . . . . Used . | . . . . . . Hacking Detections 1 | . . . . . 1 Full Trace Events . | . . . . . . Feedback Events . | . . . . . . Feedback Blocked . | . . . . . . Robot Schematics Acquired . | . . . . . . Robots Built . | . . . . . . Matter . | . . . . . . Time . | . . . . . . Total Robot Build Rating . | . . . . . . Part Schematics Acquired . | . . . . . . Parts Built . | . . . . . . Matter . | . . . . . . Time . | . . . . . . Total Part Build Rating . | . . . . . . Parts Repaired . | . . . . . . Time . | . . . . . . Parts Recycled . | . . . . . . Recycled Matter . | . . . . . . Retrieved Matter . | . . . . . . Retrieved Components . | . . . . . . Parts Scanalyzed . | . . . . . . Part Schematics Acquired . | . . . . . . Parts Damaged . | . . . . . . Bothacking | -11 -10 -10 -10 -9 -8 ------------ Run | Scr Mat Min Exi Min Mat Used RIF Installer . | . . . . . . Robots Hacked . | . . . . . . Non-combat . | . . . . . . Combat . | . . . . . . Robot Hacks Applied . | . . . . . . Relay Couplers Released . | . . . . . . Robots Rewired . | . . . . . . Allies Hacked . | . . . . . . Hacks Repelled . | . . . . . . Allies | -11 -10 -10 -10 -9 -8 -------- Run | Scr Mat Min Exi Min Mat Total Allies . | . . . . . . Largest Group . | . . . . . . Highest-Rated Group . | . . . . . . Highest-Rated Ally . | . . . . . . Total Orders . | . . . . . . Ally Attacks . | . . . . . . Total Damage . | . . . . . . Kills . | . . . . . . Allies Corrupted . | . . . . . . Allies Melted . | . . . . . . Intel | -11 -10 -10 -10 -9 -8 ------- Run | Scr Mat Min Exi Min Mat Robot Analysis Total . | . . . . . . Derelict Logs Recovered 3 | . . 1 . 2 . Drone Launches . | . . . . . . Drone Recoveries . | . . . . . . Exploration | -11 -10 -10 -10 -9 -8 ------------- Run | Scr Mat Min Exi Min Mat Turns Passed 1581 | 63 179 266 393 396 284 Spaces Moved 967 | 49 130 188 255 218 127 Core 11 | 10 . . . . 1 Treads . | . . . . . . Legs 956 | 39 130 188 255 218 126 Wheels . | . . . . . . Hover . | . . . . . . Flight . | . . . . . . Fastest Speed 50 | 50 120 120 120 150 150 Average Speed 147 | 105 120 131 149 179 160 Slowest Speed 550 | 120 120 150 150 180 550 Overloaded Moves . | . . . . . . Propulsion Burnouts . | . . . . . . Robots Hopped . | . . . . . . Cave-ins Triggered . | . . . . . . Exploration Rate (%) 34 | 3 35 38 64 60 8 Regions Visited 5 Branch Regions 3 Pre-discovered Areas 1 | . . 1 . . . Known Exits Taken 1 | . . . . 1 . Unknown Exits Taken 4 | 1 1 1 1 . . Scrap Searched 3 | . . 1 . 2 . Spaces Dug . | . . . . . . Terrain Destroyed 66 | . 11 41 . 12 2 Melee . | . . . . . . Projectile 2 | . . . . . 2 AOE 64 | . 11 41 . 12 . Actions | -11 -10 -10 -10 -9 -8 --------- Run | Scr Mat Min Exi Min Mat Total 1103 | 60 149 197 268 220 209 Wait 60 | . . . . . 60 Move 962 | 48 129 187 254 217 127 Hop . | . . . . . . Pick Up 26 | 6 9 2 6 . 3 Fast Attach 2 | . . . . 1 1 Attach 16 | 6 2 . 3 . 5 Detach 5 | . . . . . 5 Swap 8 | . 2 2 1 . 3 Drop 10 | . 3 1 4 . 2 Fire 14 | . 4 5 . 2 3 Melee . | . . . . . . Ram . | . . . . . . Kick . | . . . . . . Crush . | . . . . . . Escape Stasis . | . . . . . . Rewire . | . . . . . . Trap . | . . . . . . Miscellaneous . | . . . . . . Route ------- -11/Scrapyard -10/Materials -10/Mines -10/Exiles -9/Mines -8/Materials History --------- Turn | Location | Event 4 | -11/Scrapyard | Discovered new exit (range 16) 64 | -11/Scrapyard | Entered Materials 231 | -10/Materials | Discovered new exit (range 11) 243 | -10/Materials | Entered Mines 291 | -10/Mines | Learned Materials security intel 302 | -10/Mines | Build established: Mutant 418 | -10/Mines | Learned location of Storage (-9) 501 | -10/Mines | Deemed a non-threat by the Exiles lab entrance 503 | -10/Mines | Discovered new exit (range 5) 509 | -10/Mines | Entered Exiles 545 | -10/Exiles | Met 8R-AWN 569 | -10/Exiles | Met EX-HEX 629 | -10/Exiles | Met EX-BIN 650 | -10/Exiles | Aligned with FarCom system 652 | -10/Exiles | Given EX-Vault access code 686 | -10/Exiles | Opened EX-Vault 695 | -10/Exiles | Found Prototype Energy Cannon 696 | -10/Exiles | Identified YOLO Cannon 713 | -10/Exiles | Found Prototype Ballistic Gun 747 | -10/Exiles | Warned to stay clear of 0b10 Research branches 755 | -10/Exiles | Exiles lab attacked by MAIN.C 884 | -10/Exiles | Discovered new exit (range 14) 902 | -10/Exiles | Left Exiles lab with XL Autogun Array 902 | -10/Exiles | Entered Mines 943 | -9/Mines | Identified exit to Materials 1008 | -9/Mines | Learned Materials security intel 1298 | -9/Mines | Entered Materials 1298 | -8/Materials | Evolved 4 slots: Utility x2, Weapon x2 1328 | -8/Materials | Identified XL Autogun Array 1550 | -8/Materials | Lost 3 parts (1p2u) 1582 | -8/Materials | Self-destructed Last Messages --------------- 01335_ Acquired Particle Cannon. 01374_ O-16 Technician: "IFF HANDSHAKE FAILED. SECURING TERMINAL." 01377_ ALERT: Hostiles spotted, dispatching reinforcements to Terminal M002. 01390_ Acquired Imp. Sensor Array. 01459_ Dropped Mining Claw. 01459_ Acquired Hvy. Particle Cannon. 01463_ Connecting with Terminal... >>Trojan(Botnet) Trojan loaded successfully. Testing... Terminal linked with 0 systems. Awaiting botnet instructions. 01506_ Lgt. Ion Engine destroyed. 01510_ ECM Suite destroyed. 01519_ Lgt. Armor Plating destroyed. 01521_ Destroyed Lgt. Nuclear Core. 01524_ G-47 Trooper destroyed. 01557_ Aluminum Leg destroyed. 01580_ Imp. Sensor Array destroyed. Map ----- +----------------------------------------------------+ | ?# / # #??????????????????????????????? | | ?# # #??????????????????????????????? | | ?# "T" # #??????????????????????????????? | | ?# # #??????????????????????????????? | | ?####+## #??????????????????????????????? | | ????# #??????????????????????????????? | | ????# #??????????????????????????????? | | ????# #??????????????????????????????? | | ????# #??????????????????????????????? | | ????# #??????????????????????????????? | | ????# ##### ???????????????? | | ????# ???????????????? | | ????###"!#### #????????????????????? | | ???????#%##????? !#????????????????????? | | ???????#="#?????????????????????????????? | | ???????# #??????????????????????????????? | | ???????# #??????????????????????????????? | | ??????##/#####?######???????????????????? | | ??????# #?# #???????????????????? | | ??????# #?#"" #???????????????????? | | ??????# """ #?#"T #???????????????????? | | ??????# "R #?#"" #???????????????????? | | ??????# """ [#?# #???????????????????? | | ??????# #?# g #???????????????????? | | ????#######+####gg[ #???????????????????? | | ????# /@b #???????????????????? | | ????# #### #???????????????????? | | ????# ##+#########???????????????????? | | ????# # #?????????????????????? | | ????## # """"" =#?????????????????????? | | ?????# # """"" #?????????????????????? | | ?????# # """"" !#?????????????o???????? | | ?????# + #?????????????????????? | | ?????# # """"" #?????????????????????? | | ?????# # """"" #?????????????????????? | | ?????# # """"" #?????????????????????? | | ?????# # #?????????????????????? | | ?????# ##########?????????????????????? | | ?????#####??????????????????????????????? | | ????????????????????????????????????????? | | ????????????????????????????????????????? | | ????????????????????????????????????????? | | ????????????????????????????????????????? | | ????????????????????????????????????????? | | ????????????????????????????????????????? | | ????????????????????????????????????????? | | ????????????????????????????????????????? | | ????????????????????????????????????????? | | ????????????????????????????????????????? | | ????????????????????????????????????????? | +----------------------------------------------------+ Best States ------------- Heat Dissipation 31 Energy Generation 10 Energy Capacity 125 Matter Stores 232 Matter Capacity 300 Sight Range 16 Robot Scan Range 13 Terrain Scan Density 10 ECM Strength 1 Armor Coverage 150 Evasion (%) 50 Item Schematics ----------------- None Robot Schematics ------------------ None Fabricated ------------ Nothing Alien Tech Used ----------------- None Achievements -------------- None Challenges ------------ None Game ------ Seed PotentialShadeBuckler Manual? 0 Play Time 00:12:04 Cumulative 62.0 hours Start 2019.10.30 @ 09:26:44 End 2019.10.30 @ 09:40:26 Sessions 1 Manual Loads 0 Difficulty Rogue Special Mode None Game No. 96 Rogue 96 Adventurer 0 Explorer 0 Win Type - Total 0 Types 0/0/0/0/0/0/0 Lore% 27 Gallery% 38 Achievement% 29 Wizard Run 0 Options --------- ASCII 0 Keyboard 0 Movement Mouse Keybinds 0 Fullscreen 1 Font 18/SmallcapsGlow Map View 76x50 Tactical HUD 1 Map Filters NONE Filters NONE Steam 1 RUN: 588b04aa-b24f-499c-8fd7-2f3cdb1874cf